fUSD/lending_fUSD_20251024
["ID","MTS","AMOUNT","RATE_DAILY","PERIOD"]
[392249592,1761276713805,-500.0,0.00043013,30]
[392249593,1761276713815,-500.0,0.00043013,30]
[392249594,1761276713827,-500.0,0.00043013,30]
[392249595,1761276713837,-500.0,0.00043013,30]
[392249596,1761276713846,-500.0,0.00043013,30]
[392249597,1761276713856,-759.92,0.00043013,30]
[392249598,1761276713866,-500.0,0.00043013,30]
[392249599,1761276713876,-1172.09,0.00043013,30]
[392249600,1761276713886,-500.0,0.00043013,30]
[392249601,1761276713896,-500.0,0.00043013,30]
[392249602,1761276713906,-647.94,0.00043013,30]
[392249603,1761276713916,-557.35,0.00043013,30]
[392249604,1761276713926,-840.94,0.00043013,30]
[392249605,1761276713936,-500.0,0.00043013,30]
[392249606,1761276713946,-760.03,0.00043013,30]
[392249607,1761276713958,-500.0,0.00043013,30]
[392249608,1761276713968,-500.0,0.00043013,30]
[392249609,1761276713978,-573.08,0.00043013,30]
[392249610,1761276713988,-500.0,0.00043013,30]
[392249611,1761276713997,-786.3,0.00043013,30]
[392249612,1761276714008,-500.0,0.00043013,30]
[392249613,1761276714017,-500.0,0.00043013,30]
[392249614,1761276714027,-535.31658492,0.00043013,30]
[392249615,1761276714038,-970.16,0.00043013,30]
[392249616,1761276714048,-500.0,0.00043013,30]
[392249617,1761276714058,-500.0,0.00043013,30]
[392249618,1761276714068,-544.22,0.00043013,30]
[392249619,1761276714078,-679.01,0.00043013,30]
[392249620,1761276714088,-500.0,0.00043013,30]
[392249621,1761276714099,-500.0,0.00043013,30]
[392249622,1761276714108,-796.73,0.00043013,30]
[392249623,1761276714118,-500.0,0.00043013,30]
[392249624,1761276714127,-500.0,0.00043013,30]
[392249625,1761276714148,-500.0,0.00043013,30]
[392249626,1761276714163,-500.0,0.00043013,30]
[392249627,1761276714172,-539.42,0.00043013,30]
[392249628,1761276714182,-512.09,0.00043013,30]
[392249629,1761276714191,-500.0,0.00043013,30]
[392249630,1761276714201,-500.0,0.00043013,30]
[392249631,1761276714212,-1087.85,0.00043013,30]
[392249632,1761276714222,-500.0,0.00043013,30]
[392249633,1761276714232,-429.84008689,0.00043013,30]
[392249634,1761276714241,-500.0,0.00043013,30]
[392249635,1761276714252,-500.0,0.00043013,30]
[392249636,1761276714261,-500.0,0.00043013,30]
[392249637,1761276714271,-602.69,0.00043013,30]
[392249638,1761276714281,-500.0,0.00043013,30]
[392249639,1761276714291,-635.17,0.00043013,30]
[392249640,1761276714302,-500.0,0.00043013,30]
[392249641,1761276714311,-654.87,0.00043013,30]
[392249642,1761276714320,-500.0,0.00043013,30]
[392249643,1761276714330,-805.42,0.00043013,30]
[392249644,1761276714339,-823.67,0.00043013,30]
[392249645,1761276714348,-1000.0,0.000431,7]
[392249646,1761276714359,-3082.0,0.00043101,120]
[392249647,1761276714368,-864.42,0.00043169,2]
[392249648,1761276714378,-15000.0,0.0004317,120]
[392249649,1761276714387,-158.83955529,0.00043186,120]
[392249650,1761276714397,-158.83955529,0.00043186,120]
[392249651,1761276714407,-158.83955529,0.00043186,120]
[392249652,1761276714416,-158.83955529,0.00043186,120]
[392249653,1761276714426,-158.83955529,0.00043186,120]
[392249654,1761276714436,-158.83955529,0.00043186,120]
[392249655,1761276714445,-158.83,0.00043186,120]
[392249656,1761276714455,-152.61055312,0.00043186,120]
[392249657,1761276714464,-152.61055312,0.00043186,120]
[392249658,1761276714473,-152.61055312,0.00043186,120]
[392249659,1761276714482,-152.61055312,0.00043186,120]
[392249660,1761276714491,-152.61055312,0.00043186,120]
[392249661,1761276714500,-152.61055312,0.00043186,120]
[392249662,1761276714509,-152.61055312,0.00043186,120]
[392249663,1761276714519,-152.61055312,0.00043186,120]
[392249664,1761276714529,-152.61055312,0.00043186,120]
[392249665,1761276714538,-152.61055312,0.00043186,120]
[392249666,1761276714547,-152.61055312,0.00043186,120]
[392249667,1761276714559,-152.61055312,0.00043186,120]
[392249668,1761276714569,-186.01952262,0.00043187,120]
[392249669,1761276714579,-1231.0,0.000432,7]
[392249670,1761276714588,-101424.28692082,0.000432,120]
[392249671,1761276714910,-366.62475476,0.00041425,120]
[392249672,1761276714923,-498.37524524,0.00041425,120]
[392249673,1761276714934,-608.22134116,0.00041916,30]
[392249674,1761276715058,-502.36188939,0.00041095,30]
[392249675,1761276715068,-500.0,0.00041369,30]
[392249676,1761276715077,-865.0,0.0004148,120]
[392249677,1761276715087,-500.0,0.00041643,30]
[392249678,1761276715097,-165.45865884,0.00041916,30]
[392249679,1761276715107,-773.68,0.0004219,30]
[392249680,1761276715117,-508.76,0.00042739,30]
[392249681,1761276715127,-500.0,0.00043012,30]
[392249682,1761276715142,-50644.45478012,0.000432,120]
[392249683,1761276716197,-500.0,0.0003629,15]
[392249684,1761276716206,-483.38515251,0.0003629,7]
[392249685,1761276716217,-500.0,0.0003629,15]
[392249686,1761276716226,-500.0,0.0003629,15]
[392249687,1761276716235,-228.05860764,0.0003629,15]
[392249688,1761276716244,-500.0,0.0003629,15]
[392249689,1761276716255,-500.0,0.00041095,30]
[392249690,1761276716264,-500.0,0.00041095,30]
[392249691,1761276716274,-500.0,0.00041095,30]
[392249692,1761276716283,-500.0,0.00041095,30]
[392249693,1761276716292,-500.0,0.00041095,30]
[392249694,1761276716302,-588.07123204,0.00041095,30]
[392249695,1761276716311,-599.02,0.00041095,30]
[392249696,1761276716321,-500.0,0.00041368,30]
[392249697,1761276716330,-500.0,0.00041369,30]
[392249698,1761276716339,-500.0,0.00041369,30]
[392249699,1761276716348,-151.0,0.00041369,120]
[392249700,1761276716358,-500.0,0.00041369,30]
[392249701,1761276716367,-151.0,0.00041369,120]
[392249702,1761276716377,-151.0,0.00041369,120]
[392249703,1761276716386,-99.18357265,0.00041369,30]
[392249704,1761276716399,-400.81642735,0.00041369,30]
[392249705,1761276716409,-500.0,0.00041369,30]
[392249706,1761276716418,-151.0,0.00041369,120]
[392249707,1761276716427,-151.0,0.00041369,120]
[392249708,1761276716437,-865.0,0.00041534,120]
[392249709,1761276716446,-168.52,0.00041554,30]
[392249710,1761276716456,-865.0,0.00041589,120]
[392249711,1761276716465,-151.0,0.00041642,120]
[392249712,1761276716474,-151.0,0.00041642,120]
[392249713,1761276716483,-151.0,0.00041642,120]
[392249714,1761276716493,-151.0,0.00041642,120]
[392249715,1761276716502,-643.42447486,0.00041643,30]
[392249716,1761276716511,-182.2,0.00041643,30]
[392249717,1761276716521,-500.0,0.00041643,30]
[392249718,1761276716530,-151.0,0.00041643,120]
[392249719,1761276716539,-500.0,0.00041643,30]
[392249720,1761276716548,-151.0,0.00041643,120]
[392249721,1761276716557,-500.0,0.00041643,30]
[392249722,1761276716566,-151.0,0.00041643,120]
[392249723,1761276716575,-151.0,0.00041643,120]
[392249724,1761276716583,-111.75616315,0.00041644,120]
[392249725,1761276716597,-753.24383685,0.00041644,120]
[392249726,1761276716606,-865.0,0.00041699,120]
[392249727,1761276716615,-865.0,0.00041754,120]
[392249728,1761276716624,-865.0,0.00041808,120]
[392249729,1761276716633,-865.0,0.00041863,120]
[392249730,1761276716643,-414.38039375,0.00041871,2]
[392249736,1761277370483,-404.02780811,0.00021,2]
[392249737,1761277372057,-351.2296079,0.00021,2]
[392249738,1761277376101,-157.57740705,0.00021,2]
[392249739,1761277379058,-180.7499272,0.00021,2]
[392249740,1761277382206,-295.79,0.00021,2]
[392249741,1761277383618,-191.57806558,0.00021,2]
[392249742,1761277386490,300.0,0.000231,120]
[392249743,1761277401179,-301.22351527,0.00021,2]
[392249744,1761277402869,-295.06994847,0.00021,2]
[392249745,1761277406311,-515.97359416,0.00021,2]
[392249746,1761277409276,-156.43564937,0.00021,2]
[392249748,1761277413099,-250.0,0.00021,2]
[392249749,1761277416252,-402.69781093,0.00021,2]
[392249750,1761277420245,-179.50218907,0.00021,2]
[392249751,1761277423526,-287.42089539,0.00021,2]
[392249752,1761277427512,-205.8991315,0.00021,2]
[392249753,1761277444991,-212.57910461,0.00021,2]
[392249754,1761277446539,-223.24300955,0.00021,2]
[392249756,1761277504453,280.69851757,0.000231,120]
[392249757,1761277506465,298.1716457,0.000231,120]
[392249763,1761277803849,2500.0,0.000231,120]
[392249764,1761277803939,250.75978487,0.00022,120]
[392249765,1761277805012,1662.72657983,0.000231,120]
[392249766,1761277806388,195.0,0.000231,120]
[392249770,1761277832183,-654.76233584,0.00021,2]
[392249771,1761277832195,-920.25925163,0.00023,2]
[392249772,1761277832205,-300.0,0.00027995,120]
[392249773,1761277832215,-254.64,0.00036119,2]
[392249774,1761277832224,-355.63142673,0.00036757,120]
[392249775,1761277832234,-300.0,0.00037454,3]
[392249776,1761277832244,-300.0,0.00037454,3]
[392249777,1761277832254,-300.0,0.00037454,2]
[392249778,1761277832264,-1200.0,0.00037454,3]
[392249779,1761277832274,-150.0,0.00037455,4]
[392249780,1761277832284,-150.0,0.00037455,4]
[392249781,1761277832294,-150.0,0.00037455,4]
[392249782,1761277832303,-150.0,0.00037455,4]
[392249783,1761277832311,-150.0,0.00037455,4]
[392249784,1761277832321,-150.0,0.00037455,4]
[392249785,1761277832331,-150.0,0.00037455,4]
[392249786,1761277832341,-150.0,0.00037455,4]
[392249787,1761277832351,-150.0,0.00037455,4]
[392249788,1761277832361,-150.0,0.00037653,7]
[392249789,1761277832371,-150.0,0.00037851,7]
[392249790,1761277832380,-150.0,0.00038049,7]
[392249791,1761277832390,-150.0,0.00038247,7]
[392249792,1761277832399,-150.0,0.00038446,7]
[392249793,1761277832409,-150.0,0.00038644,7]
[392249794,1761277832418,-150.0,0.00038842,7]
[392249795,1761277832427,-150.0,0.00038842,7]
[392249796,1761277832436,-150.0,0.0003904,7]
[392249797,1761277832446,-406.23,0.00039235,120]
[392249799,1761277832455,-150.0,0.00039238,7]
[392249801,1761277832464,-150.0,0.00039437,7]
[392249803,1761277832473,-150.0,0.00039635,7]
[392249805,1761277832483,-967.479192,0.000398,2]
[392249807,1761277832493,-150.0,0.00039833,7]
[392249809,1761277832502,-1000.0,0.00039905,2]
[392249811,1761277832512,-150.0,0.00039957,2]
[392249813,1761277832521,-150.0,0.00039957,120]
[392249815,1761277832530,-150.0,0.00039957,4]
[392249817,1761277832539,-500.0,0.00039999,31]
[392249819,1761277832548,-295.76588377,0.00039999,31]
[392249821,1761277832557,-500.0,0.00039999,31]
[392249823,1761277832567,-500.0,0.00039999,31]
[392249824,1761277832576,-500.0,0.00039999,31]
[392249826,1761277832585,-500.0,0.00039999,31]
[392249828,1761277832595,-500.0,0.00039999,31]
[392249830,1761277832604,-500.0,0.00039999,31]
[392249832,1761277832613,-500.0,0.00039999,31]
[392249834,1761277832622,-500.0,0.00039999,31]
[392249835,1761277832632,-500.0,0.00039999,31]
[392249837,1761277832641,-500.0,0.00039999,31]
[392249839,1761277832650,-500.0,0.00039999,31]
[392249840,1761277832658,-500.0,0.00039999,31]
[392249841,1761277832668,-500.0,0.00039999,31]
[392249842,1761277832678,-500.0,0.00039999,31]
[392249843,1761277832687,-500.0,0.00039999,31]
[392249844,1761277832696,-500.0,0.00039999,31]
[392249845,1761277832706,-500.0,0.00039999,31]
[392249846,1761277832716,-200.0,0.00039999,31]
[392249847,1761277832726,-500.0,0.00039999,31]
[392249848,1761277832735,-500.0,0.00039999,31]
[392249849,1761277832745,-251.82545333,0.00039999,31]
[392249850,1761277832754,-500.0,0.00039999,31]
[392249851,1761277832763,-500.0,0.00039999,31]
[392249852,1761277832773,-500.0,0.00039999,31]
[392249853,1761277832782,-500.0,0.00039999,31]
[392249854,1761277832791,-500.0,0.00039999,31]
[392249855,1761277832801,-500.0,0.00039999,31]
[392249856,1761277832810,-500.0,0.00039999,31]
[392249857,1761277832820,-438.84551866,0.00039999,31]
[392249858,1761277832829,-500.0,0.00039999,31]
[392249859,1761277832839,-500.0,0.00039999,31]
[392249860,1761277832848,-500.0,0.00039999,31]
[392249861,1761277832858,-500.0,0.00039999,31]
[392249862,1761277832867,-500.0,0.00039999,31]
[392249863,1761277832876,-500.0,0.00039999,31]
[392249864,1761277832885,-500.0,0.00039999,31]
[392249865,1761277832895,-500.0,0.00039999,31]
[392249866,1761277832904,-500.0,0.00039999,31]
[392249867,1761277832913,-500.0,0.00039999,31]
[392249868,1761277832923,-500.0,0.00039999,31]
[392249869,1761277832932,-500.0,0.00039999,31]
[392249870,1761277832941,-500.0,0.00039999,31]
[392249871,1761277832951,-500.0,0.00039999,31]
[392249872,1761277832960,-424.25072403,0.00039999,31]
[392249873,1761277832969,-500.0,0.00039999,31]
[392249874,1761277832978,-500.0,0.00039999,31]
[392249875,1761277832988,-500.0,0.00039999,31]
[392249876,1761277832998,-500.0,0.00039999,31]
[392249877,1761277833008,-500.0,0.00039999,31]
[392249878,1761277833018,-500.0,0.00039999,31]
[392249879,1761277833029,-500.0,0.00039999,31]
[392249880,1761277833039,-500.0,0.00039999,31]
[392249881,1761277833048,-500.0,0.00039999,31]
[392249882,1761277833058,-500.0,0.00039999,31]
[392249883,1761277833067,-50000.0,0.0004,12]
[392249884,1761277833077,-770.3174182,0.0004,30]
[392249885,1761277833086,-150.0,0.00040031,7]
[392249886,1761277833095,-151.0,0.00040045,2]
[392249887,1761277833105,-151.0,0.00040045,2]
[392249888,1761277833114,-6347.09,0.00040069,2]
[392249889,1761277833124,-500.0,0.00040117,30]
[392249890,1761277833134,-250.0,0.00040212,2]
[392249891,1761277833144,-534.62,0.00040212,2]
[392249892,1761277833154,-371.56,0.00040212,120]
[392249893,1761277833164,-180.11,0.00040213,2]
[392249894,1761277833174,-150.0,0.00040229,7]
[392249895,1761277833183,-150.0,0.00040229,7]
[392249896,1761277833193,-150.0,0.00040427,7]
[392249897,1761277833202,-779.52,0.00040534,2]
[392249898,1761277833212,-150.0,0.00040626,7]
[392249899,1761277833222,-373.5,0.00040668,2]
[392249900,1761277833231,-150.0,0.00040824,7]
[392249901,1761277833241,-476.23156132,0.00040897,2]
[392249902,1761277833251,-4104.39610198,0.0004092,2]
[392249903,1761277833260,-2331.72584341,0.00040922,15]
[392249904,1761277833272,-733.47429309,0.00040922,15]
[392249905,1761277833302,-1015.73388281,0.00040922,15]
[392249906,1761277833312,-709.3508492,0.00040985,13]
[392249907,1761277833321,-9024.02340062,0.00040985,15]
[392249908,1761277833333,-7195.02382567,0.00040985,15]
[392249909,1761277833343,-166.05,0.00040985,2]
[392249910,1761277833352,-308.668,0.00040994,59]
[392249911,1761277833362,-165.11464299,0.00040995,15]
[392249912,1761277833372,-522.491,0.00040995,2]
[392249913,1761277833381,-545.8809,0.00040995,2]
[392249914,1761277833391,-5000.0,0.00040995,2]
[392249915,1761277833400,-30910.1035148,0.00040995,60]
[392249916,1761277838103,-227.16726034,0.00040921,31]
[392249917,1761277838113,-500.0,0.00040921,31]
[392249918,1761277838123,-500.0,0.00040921,31]
[392249919,1761277838133,-59.69948323,0.00040921,31]
[392249920,1761277838145,-256.66469602,0.00040921,31]
[392249921,1761277838155,-19227.20868181,0.00040995,60]
[392249922,1761277838417,-594.16393369,0.00040995,60]
[392249927,1761277840621,-1.6e-07,0.00040995,60]
[392249929,1761277840646,-7774.885,0.00040995,60]
[392249930,1761277840658,-84335.37216954,0.00040995,60]
[392249931,1761277840667,-150.0,0.00041022,7]
[392249932,1761277840675,-198505.181494,0.00041085,3]
[392249933,1761277840685,-166.05,0.00041085,2]
[392249934,1761277840694,-461.011695,0.00041085,30]
[392249935,1761277840703,-151.0,0.00041092,14]
[392249936,1761277840712,-500.0,0.00041094,7]
[392249937,1761277840727,-500.0,0.00041094,7]
[392249938,1761277840736,-396.6,0.00041094,7]
[392249939,1761277840745,-500.0,0.00041094,2]
[392249940,1761277840754,-500.0,0.00041094,2]
[392249941,1761277840763,-500.0,0.00041094,2]
[392249942,1761277840773,-199.0,0.00041094,7]
[392249943,1761277840782,-500.0,0.00041095,30]
[392249944,1761277840791,-500.0,0.00041095,30]
[392249945,1761277840800,-500.0,0.00041095,30]
[392249946,1761277840809,-500.0,0.00041095,30]
[392249947,1761277840818,-500.0,0.00041095,30]
[392249948,1761277840828,-500.0,0.00041095,30]
[392249949,1761277840837,-500.0,0.00041095,30]
[392249950,1761277840846,-500.0,0.00041095,30]
[392249951,1761277840855,-500.0,0.00041095,30]
[392249952,1761277840864,-500.0,0.00041095,30]
[392249953,1761277840873,-500.0,0.00041095,30]
[392249954,1761277840883,-500.0,0.00041095,30]
[392249955,1761277841030,-500.0,0.00041095,30]
[392249956,1761277841039,-500.0,0.00041095,2]
[392249957,1761277841048,-500.0,0.00041095,30]
[392249958,1761277841057,-500.0,0.00041095,30]
[392249959,1761277841067,-500.0,0.00041095,30]
[392249960,1761277841076,-465.8375016,0.00041095,30]
[392249961,1761277841084,-500.0,0.00041095,30]
[392249962,1761277841094,-500.0,0.00041095,30]
[392249963,1761277841103,-500.0,0.00041095,30]
[392249964,1761277841112,-500.0,0.00041095,30]
[392249965,1761277841121,-500.0,0.00041095,30]
[392249966,1761277841131,-488.07931755,0.00041095,30]
[392249967,1761277841140,-500.0,0.00041095,30]
[392249968,1761277841150,-582.26,0.00041095,30]
[392249969,1761277841159,-500.0,0.00041095,30]
[392249970,1761277841168,-500.0,0.00041095,30]
[392249971,1761277841177,-506.23087792,0.00041095,30]
[392249972,1761277841186,-616.37,0.00041095,30]
[392249973,1761277841195,-500.0,0.00041095,30]
[392249974,1761277841205,-500.0,0.00041095,30]
[392249975,1761277841214,-500.0,0.00041095,30]
[392249976,1761277841224,-500.0,0.00041095,30]
[392249977,1761277841236,-500.0,0.00041095,30]
[392249978,1761277841246,-500.0,0.00041095,30]
[392249979,1761277841255,-500.0,0.00041095,30]
[392249980,1761277841264,-500.0,0.00041095,30]
[392249981,1761277841274,-500.0,0.00041095,30]
[392249982,1761277841283,-500.0,0.00041095,30]
[392249983,1761277841292,-500.0,0.00041095,30]
[392249984,1761277841302,-500.0,0.00041095,30]
[392249985,1761277841312,-500.0,0.00041095,30]
[392249986,1761277841321,-598.84,0.00041095,30]
[392249987,1761277841330,-500.0,0.00041095,30]
[392249988,1761277841339,-500.0,0.00041095,30]
[392249989,1761277841349,-500.0,0.00041095,30]
[392249990,1761277841358,-500.0,0.00041095,2]
[392249991,1761277841367,-500.0,0.00041095,30]
[392249992,1761277841377,-500.0,0.00041095,30]
[392249993,1761277841386,-500.0,0.00041095,30]
[392249994,1761277841395,-500.0,0.00041095,30]
[392249995,1761277841404,-500.0,0.00041095,30]
[392249996,1761277841413,-1057.47,0.00041095,30]
[392249997,1761277841422,-500.0,0.00041095,30]
[392249998,1761277841435,-500.0,0.00041095,30]
[392249999,1761277841444,-500.0,0.00041095,30]
[392250000,1761277841453,-500.0,0.00041095,30]
[392250001,1761277841463,-500.0,0.00041095,30]
[392250002,1761277841472,-500.0,0.00041095,30]
[392250003,1761277841481,-500.0,0.00041095,30]
[392250004,1761277841491,-1060.68,0.00041095,30]
[392250005,1761277841500,-500.0,0.00041095,30]
[392250006,1761277841509,-513.61360456,0.00041095,30]
[392250007,1761277841518,-500.0,0.00041095,30]
[392250008,1761277841528,-500.0,0.00041095,6]
[392250009,1761277841537,-500.0,0.00041095,30]
[392250010,1761277841547,-500.0,0.00041095,30]
[392250011,1761277841555,-500.0,0.00041095,30]
[392250012,1761277841565,-500.0,0.00041095,30]
[392250013,1761277841574,-500.0,0.00041095,30]
[392250014,1761277841583,-500.0,0.00041095,30]
[392250015,1761277841592,-500.0,0.00041095,30]
[392250016,1761277841601,-500.0,0.00041095,30]
[392250017,1761277841610,-500.0,0.00041095,30]
[392250018,1761277841619,-500.0,0.00041095,30]
[392250019,1761277841631,-500.0,0.00041095,30]
[392250020,1761277841640,-500.0,0.00041095,30]
[392250021,1761277841650,-728.1,0.00041095,30]
[392250022,1761277841659,-500.0,0.00041095,30]
[392250023,1761277841668,-500.0,0.00041095,30]
[392250024,1761277841677,-500.0,0.00041095,30]
[392250025,1761277841686,-500.0,0.00041095,30]
[392250026,1761277841695,-500.0,0.00041095,30]
[392250027,1761277841704,-500.0,0.00041095,30]
[392250028,1761277841714,-500.0,0.00041095,30]
[392250029,1761277841727,-500.0,0.00041095,30]
[392250030,1761277841736,-500.0,0.00041095,30]
[392250031,1761277841745,-500.0,0.00041095,30]
[392250032,1761277841754,-500.0,0.00041095,30]
[392250033,1761277841763,-667.07,0.00041095,30]
[392250034,1761277841773,-500.0,0.00041095,30]
[392250035,1761277841782,-528.40845504,0.00041095,30]
[392250036,1761277841792,-668.73,0.00041095,30]
[392250037,1761277841801,-500.0,0.00041095,30]
[392250038,1761277841810,-500.0,0.00041095,30]
[392250039,1761277841819,-500.0,0.00041095,30]
[392250040,1761277841828,-500.0,0.00041095,30]
[392250041,1761277841838,-572.42,0.00041095,30]
[392250042,1761277841847,-500.0,0.00041095,30]
[392250043,1761277841856,-500.0,0.00041095,30]
[392250044,1761277841865,-500.0,0.00041095,30]
[392250045,1761277841874,-500.0,0.00041095,30]
[392250046,1761277841884,-500.0,0.00041095,30]
[392250047,1761277841894,-150.1898385,0.00041095,30]
[392250048,1761277841904,-500.0,0.00041095,30]
[392250049,1761277841914,-500.0,0.00041095,30]
[392250050,1761277841923,-500.0,0.00041095,30]
[392250051,1761277841933,-500.0,0.00041095,30]
[392250052,1761277841943,-500.0,0.00041095,30]
[392250053,1761277841953,-500.0,0.00041095,30]
[392250054,1761277841962,-500.0,0.00041095,30]
[392250055,1761277841973,-500.0,0.00041095,30]
[392250056,1761277841983,-500.0,0.00041095,30]
[392250057,1761277841993,-500.0,0.00041095,30]
[392250058,1761277842002,-617.81,0.00041095,30]
[392250059,1761277842012,-500.0,0.00041095,30]
[392250060,1761277842021,-509.33544935,0.00041095,30]
[392250061,1761277842031,-500.0,0.00041095,30]
[392250062,1761277842040,-500.0,0.00041095,30]
[392250063,1761277842050,-500.0,0.00041095,30]
[392250064,1761277842059,-500.0,0.00041095,30]
[392250065,1761277842070,-500.0,0.00041095,30]
[392250066,1761277842079,-500.0,0.00041095,30]
[392250067,1761277842088,-500.0,0.00041095,30]
[392250068,1761277842098,-688.1,0.00041095,30]
[392250069,1761277842107,-500.0,0.00041095,30]
[392250070,1761277842117,-500.0,0.00041095,30]
[392250071,1761277842126,-500.0,0.00041095,30]
[392250072,1761277842136,-500.0,0.00041095,30]
[392250073,1761277842146,-520.71,0.00041095,30]
[392250074,1761277842155,-500.0,0.00041095,30]
[392250075,1761277842164,-500.0,0.00041095,30]
[392250076,1761277842174,-500.0,0.00041095,30]
[392250077,1761277842184,-500.0,0.00041095,30]
[392250078,1761277842194,-500.0,0.00041095,30]
[392250079,1761277842203,-500.0,0.00041095,30]
[392250080,1761277842212,-508.34,0.00041095,30]
[392250081,1761277842221,-554.36350115,0.00041095,30]
[392250082,1761277842230,-500.0,0.00041095,30]
[392250083,1761277842239,-500.0,0.00041095,30]
[392250084,1761277842248,-500.0,0.00041095,30]
[392250085,1761277842258,-778.55,0.00041095,30]
[392250086,1761277842267,-500.0,0.00041095,30]
[392250087,1761277842276,-500.0,0.00041095,30]
[392250088,1761277842286,-500.0,0.00041095,30]
[392250089,1761277842296,-500.0,0.00041095,30]
[392250090,1761277842305,-500.0,0.00041095,30]
[392250091,1761277842314,-500.0,0.00041095,30]
[392250092,1761277842324,-500.0,0.00041095,30]
[392250093,1761277842333,-500.0,0.00041095,30]
[392250094,1761277842342,-373.14,0.00041095,30]
[392250095,1761277842352,-547.69,0.00041095,30]
[392250096,1761277842362,-669.09,0.00041095,30]
[392250097,1761277842371,-663.87,0.00041095,30]
[392250098,1761277842381,-500.0,0.00041095,30]
[392250099,1761277842390,-502.52,0.00041095,30]
[392250100,1761277842399,-500.0,0.00041095,30]
[392250101,1761277842408,-500.0,0.00041095,30]
[392250102,1761277842418,-545.98,0.00041095,30]
[392250103,1761277842427,-500.0,0.00041095,30]
[392250104,1761277842436,-500.0,0.00041095,30]
[392250105,1761277842446,-500.0,0.00041095,30]
[392250106,1761277842455,-500.0,0.00041095,30]
[392250107,1761277842464,-500.0,0.00041095,30]
[392250108,1761277842473,-500.0,0.00041095,30]
[392250109,1761277842483,-500.0,0.00041095,30]
[392250110,1761277842492,-500.0,0.00041095,30]
[392250111,1761277842501,-500.0,0.00041095,30]
[392250112,1761277842510,-500.0,0.00041095,30]
[392250113,1761277842520,-205.83456741,0.00041095,30]
[392250114,1761277842529,-500.0,0.00041095,30]
[392250115,1761277842538,-500.0,0.00041095,30]
[392250116,1761277842547,-500.0,0.00041095,30]
[392250117,1761277842556,-500.0,0.00041095,30]
[392250118,1761277842565,-500.0,0.00041095,30]
[392250119,1761277842574,-500.0,0.00041095,30]
[392250120,1761277842584,-705.28,0.00041095,30]
[392250121,1761277842593,-500.0,0.00041095,30]
[392250122,1761277842602,-500.0,0.00041095,30]
[392250123,1761277842611,-500.0,0.00041095,30]
[392250124,1761277842620,-500.0,0.00041095,30]
[392250125,1761277842629,-585.84,0.00041095,30]
[392250126,1761277842638,-500.0,0.00041095,30]
[392250127,1761277842648,-500.0,0.00041095,30]
[392250128,1761277842657,-500.0,0.00041095,30]
[392250129,1761277842666,-500.0,0.00041095,30]
[392250130,1761277842675,-500.0,0.00041095,30]
[392250131,1761277842684,-500.0,0.00041095,30]